[Event "Live Chess"]
[Site "Chess.com"]
[Date "2024.06.01"]
[Round "-"]
[White "MellowAesthetic"]
[Black "KeithArkell"]
[Result "0-1"]
[WhiteElo "2057"]
[BlackElo "2518"]
[TimeControl "300"]
[EndTime "11:00:04 PDT"]
[Termination "KeithArkell won by resignation"]

1. e4 {[%clk 0:04:57.8]} 1... c6 {[%clk 0:04:59.4]} 2. d4 {[%clk 0:04:56.4]}
2... d5 {[%clk 0:04:59.3]} 3. exd5 {[%clk 0:04:56]} 3... cxd5 {[%clk 0:04:58.7]}
4. c4 {[%clk 0:04:55.7]} 4... Nf6 {[%clk 0:04:58.2]} 5. Nc3 {[%clk 0:04:55]}
5... g6 {[%clk 0:04:57.8]} 6. cxd5 {[%clk 0:04:53.6]} 6... Nxd5 {[%clk
0:04:56.3]} 7. Nf3 {[%clk 0:04:47.6]} 7... Nxc3 {[%clk 0:04:55.1]} 8. bxc3
{[%clk 0:04:46.4]} 8... Bg7 {[%clk 0:04:54.5]} 9. Bf4 {[%clk 0:04:36.5]} 9...
O-O {[%clk 0:04:51.8]} 10. Bc4 {[%clk 0:04:14.7]} 10... Nc6 {[%clk 0:04:43.7]}
11. O-O {[%clk 0:04:12.8]} 11... Bg4 {[%clk 0:04:41.6]} 12. h3 {[%clk
0:03:49.1]} 12... Bxf3 {[%clk 0:04:40.3]} 13. Qxf3 {[%clk 0:03:49]} 13... Rc8
{[%clk 0:04:39.7]} 14. Bb3 {[%clk 0:03:43]} 14... Na5 {[%clk 0:04:30.3]} 15.
Rfe1 {[%clk 0:03:16]} 15... e6 {[%clk 0:04:28.3]} 16. Be5 {[%clk 0:03:04.7]}
16... b6 {[%clk 0:04:23.7]} 17. Rad1 {[%clk 0:01:42.4]} 17... Nc4 {[%clk
0:04:16.1]} 18. Bxg7 {[%clk 0:01:33.9]} 18... Kxg7 {[%clk 0:04:16]} 19. d5
{[%clk 0:01:32.8]} 19... exd5 {[%clk 0:03:59]} 20. Rxd5 {[%clk 0:01:31.3]} 20...
Qf6 {[%clk 0:03:24.7]} 21. Qd3 {[%clk 0:00:46.8]} 21... Na5 {[%clk 0:03:18.6]}
22. c4 {[%clk 0:00:35.5]} 22... Rfe8 {[%clk 0:03:16.7]} 23. Rd1 {[%clk
0:00:26.6]} 23... Nb7 {[%clk 0:03:09.5]} 24. Qd4 {[%clk 0:00:16.7]} 24... Nc5
{[%clk 0:03:06.2]} 25. Qxf6+ {[%clk 0:00:14.7]} 25... Kxf6 {[%clk 0:03:05.4]}
26. f4 {[%clk 0:00:12.2]} 26... Re3 {[%clk 0:03:01]} 27. R1d2 {[%clk 0:00:11.6]}
27... Nxb3 {[%clk 0:02:57.8]} 28. axb3 {[%clk 0:00:11.4]} 28... Rxb3 {[%clk
0:02:56.9]} 29. Rd7 {[%clk 0:00:11.2]} 29... Rxc4 {[%clk 0:02:53.7]} 30. Rxa7
{[%clk 0:00:10.1]} 30... Rxf4 {[%clk 0:02:52.9]} 31. Rdd7 {[%clk 0:00:09.7]}
31... Kg7 {[%clk 0:02:52.4]} 0-1

[Event "Live Chess"]
[Site "Chess.com"]
[Date "2024.06.01"]
[Round "-"]
[White "nigelst"]
[Black "rakibsachchu"]
[Result "0-1"]
[WhiteElo "1692"]
[BlackElo "1579"]
[TimeControl "300"]
[EndTime "11:00:12 PDT"]
[Termination "rakibsachchu won by resignation"]

1. e4 {[%clk 0:04:57.4]} 1... c5 {[%clk 0:04:55]} 2. Nf3 {[%clk 0:04:54.3]} 2...
e6 {[%clk 0:04:53.1]} 3. c3 {[%clk 0:04:51.5]} 3... Nf6 {[%clk 0:04:50.6]} 4. e5
{[%clk 0:04:48.7]} 4... Nd5 {[%clk 0:04:43.3]} 5. d4 {[%clk 0:04:47.2]} 5... d6
{[%clk 0:04:39.7]} 6. Bb5+ {[%clk 0:04:42.1]} 6... Bd7 {[%clk 0:04:34.9]} 7.
Bxd7+ {[%clk 0:04:40]} 7... Qxd7 {[%clk 0:04:32.4]} 8. O-O {[%clk 0:04:38.6]}
8... Nc6 {[%clk 0:04:28.7]} 9. Na3 {[%clk 0:04:31.4]} 9... O-O-O {[%clk
0:04:22.6]} 10. exd6 {[%clk 0:04:26.2]} 10... Bxd6 {[%clk 0:04:20]} 11. Nb5
{[%clk 0:04:24.8]} 11... Bb8 {[%clk 0:04:17.5]} 12. Qe2 {[%clk 0:04:15.2]} 12...
a6 {[%clk 0:04:10.8]} 13. Na3 {[%clk 0:04:09.3]} 13... cxd4 {[%clk 0:04:05.8]}
14. Nxd4 {[%clk 0:04:06.5]} 14... Qc7 {[%clk 0:03:58.6]} 15. g3 {[%clk
0:04:02.4]} 15... h5 {[%clk 0:03:52.4]} 16. Nac2 {[%clk 0:03:49.3]} 16... h4
{[%clk 0:03:49.7]} 17. Nxc6 {[%clk 0:03:47.1]} 17... Qxc6 {[%clk 0:03:46.4]} 18.
Nd4 {[%clk 0:03:45.6]} 18... Qd7 {[%clk 0:03:40.9]} 19. Be3 {[%clk 0:03:40.6]}
19... hxg3 {[%clk 0:03:38]} 20. fxg3 {[%clk 0:03:29.5]} 20... Rh3 {[%clk
0:03:01.8]} 21. Qc4+ {[%clk 0:03:19.2]} 21... Bc7 {[%clk 0:02:49.5]} 22. Bf4
{[%clk 0:03:15.8]} 22... Nxf4 {[%clk 0:02:44.3]} 23. gxf4 {[%clk 0:03:06.5]}
23... Rdh8 {[%clk 0:02:33.7]} 24. Rf2 {[%clk 0:03:02.8]} 24... Kb8 {[%clk
0:02:27.2]} 25. Ne2 {[%clk 0:02:50.8]} 25... Bb6 {[%clk 0:02:21.2]} 26. Nd4
{[%clk 0:02:46.8]} 26... R3h6 {[%clk 0:01:59.8]} 27. Rd1 {[%clk 0:02:39.1]}
27... Rg6+ {[%clk 0:01:56]} 28. Rg2 {[%clk 0:02:32.1]} 28... Rxg2+ {[%clk
0:01:48.9]} 29. Kxg2 {[%clk 0:02:30.6]} 29... e5 {[%clk 0:01:46.8]} 30. fxe5
{[%clk 0:02:07.3]} 30... Qg4+ {[%clk 0:01:44]} 31. Kf2 {[%clk 0:02:03.7]} 31...
Qxd1 {[%clk 0:01:41.3]} 32. Qd5 {[%clk 0:01:56.1]} 32... Rxh2+ {[%clk
0:01:34.6]} 33. Ke3 {[%clk 0:01:54.8]} 33... Rh3+ {[%clk 0:01:18.9]} 34. Kf4
{[%clk 0:01:53.2]} 34... g5+ {[%clk 0:01:14.9]} 35. Kxg5 {[%clk 0:01:46.9]}
35... Qh5+ {[%clk 0:01:10.6]} 36. Kf6 {[%clk 0:01:45.4]} 36... Qg6+ {[%clk
0:01:06.6]} 37. Ke7 {[%clk 0:01:43.6]} 37... Rh8 {[%clk 0:00:52.8]} 38. Qd6+
{[%clk 0:01:26.3]} 38... Bc7 {[%clk 0:00:48.7]} 39. Qxg6 {[%clk 0:01:20.2]}
39... fxg6 {[%clk 0:00:46.9]} 40. Kf7 {[%clk 0:01:17.2]} 40... g5 {[%clk
0:00:45]} 41. e6 {[%clk 0:01:16.3]} 41... g4 {[%clk 0:00:35.9]} 42. Nf5 {[%clk
0:01:12.2]} 42... g3 {[%clk 0:00:29]} 43. e7 {[%clk 0:01:08.7]} 43... g2 {[%clk
0:00:25.6]} 44. Ng7 {[%clk 0:01:03.9]} 44... g1=Q {[%clk 0:00:21.5]} 0-1

[Event "Live Chess"]
[Site "Chess.com"]
[Date "2024.06.01"]
[Round "-"]
[White "LL220284LL"]
[Black "Rusty_Bridges"]
[Result "1-0"]
[WhiteElo "2583"]
[BlackElo "1497"]
[TimeControl "300"]
[EndTime "11:00:25 PDT"]
[Termination "LL220284LL won by resignation"]

1. d4 {[%clk 0:04:58.2]} 1... d5 {[%clk 0:04:58.5]} 2. c4 {[%clk 0:04:57.4]}
2... e6 {[%clk 0:04:52.9]} 3. Nf3 {[%clk 0:04:56.7]} 3... Be7 {[%clk 0:04:52.1]}
4. Nc3 {[%clk 0:04:55.2]} 4... Nf6 {[%clk 0:04:49]} 5. g4 {[%clk 0:04:54.8]}
5... h6 {[%clk 0:04:46.8]} 6. Rg1 {[%clk 0:04:53.4]} 6... Nc6 {[%clk 0:04:41.9]}
7. h4 {[%clk 0:04:50]} 7... Bb4 {[%clk 0:04:37]} 8. Bd2 {[%clk 0:04:45]} 8...
Bxc3 {[%clk 0:04:31.3]} 9. Bxc3 {[%clk 0:04:42.7]} 9... Ne4 {[%clk 0:04:30.1]}
10. e3 {[%clk 0:04:38.9]} 10... Qe7 {[%clk 0:04:27.4]} 11. Qb3 {[%clk
0:04:30.8]} 11... dxc4 {[%clk 0:04:23]} 12. Bxc4 {[%clk 0:04:28.4]} 12... Nxc3
{[%clk 0:04:20.8]} 13. bxc3 {[%clk 0:04:27.1]} 13... Na5 {[%clk 0:04:17.5]} 14.
Qa4+ {[%clk 0:04:16.1]} 14... Nc6 {[%clk 0:04:15.3]} 15. Ne5 {[%clk 0:04:11.4]}
15... Bd7 {[%clk 0:04:12.8]} 16. Nxd7 {[%clk 0:04:10.1]} 16... Qxd7 {[%clk
0:04:11.6]} 17. Bb5 {[%clk 0:04:01.4]} 17... a6 {[%clk 0:04:08.7]} 18. Bxc6
{[%clk 0:04:00.2]} 18... Qxc6 {[%clk 0:04:03.9]} 19. Qxc6+ {[%clk 0:03:58.6]}
19... bxc6 {[%clk 0:04:03.2]} 20. Rb1 {[%clk 0:03:58.5]} 20... O-O {[%clk
0:03:58]} 21. Kd2 {[%clk 0:03:52.3]} 21... Rab8 {[%clk 0:03:55.6]} 22. Kd3
{[%clk 0:03:42.3]} 22... Rb6 {[%clk 0:03:52.6]} 23. Rb3 {[%clk 0:03:37.5]} 23...
Rfb8 {[%clk 0:03:51.7]} 24. Rgb1 {[%clk 0:03:36.2]} 24... Kf8 {[%clk 0:03:49.5]}
25. Kc4 {[%clk 0:03:33.2]} 25... Ke7 {[%clk 0:03:48.5]} 26. Kc5 {[%clk
0:03:32.5]} 26... Rb5+ {[%clk 0:03:44.7]} 27. Rxb5 {[%clk 0:03:28.9]} 27... cxb5
{[%clk 0:03:42.8]} 28. a4 {[%clk 0:03:27.9]} 28... Kd7 {[%clk 0:03:31.2]} 29.
axb5 {[%clk 0:03:26.7]} 29... c6 {[%clk 0:03:27.2]} 30. bxc6+ {[%clk 0:03:24.4]}
30... Kc7 {[%clk 0:03:25.2]} 31. Rxb8 {[%clk 0:03:24]} 31... Kxb8 {[%clk
0:03:24.5]} 32. Kb6 {[%clk 0:03:23.5]} 32... a5 {[%clk 0:03:22.9]} 33. Kxa5
{[%clk 0:03:22.7]} 33... Kc7 {[%clk 0:03:22.8]} 34. Kb5 {[%clk 0:03:22.2]} 1-0

[Event "Live Chess"]
[Site "Chess.com"]
[Date "2024.06.01"]
[Round "-"]
[White "KwikPhoenix"]
[Black "GoldsmanB"]
[Result "1-0"]
[WhiteElo "2454"]
[BlackElo "1044"]
[TimeControl "300"]
[EndTime "11:00:45 PDT"]
[Termination "KwikPhoenix won by resignation"]

1. b3 {[%clk 0:04:58.8]} 1... e5 {[%clk 0:04:58.2]} 2. Bb2 {[%clk 0:04:58.7]}
2... Nc6 {[%clk 0:04:56.4]} 3. e3 {[%clk 0:04:58.3]} 3... d5 {[%clk 0:04:53.9]}
4. Bb5 {[%clk 0:04:57.4]} 4... Bd6 {[%clk 0:04:49.8]} 5. Nf3 {[%clk 0:04:56.8]}
5... f6 {[%clk 0:04:45.6]} 6. c4 {[%clk 0:04:55.6]} 6... dxc4 {[%clk 0:04:42.7]}
7. bxc4 {[%clk 0:04:55.5]} 7... e4 {[%clk 0:04:41.5]} 8. Nd4 {[%clk 0:04:53.8]}
8... Bd7 {[%clk 0:04:38.8]} 9. Bxc6 {[%clk 0:04:51.8]} 9... Bxc6 {[%clk
0:04:38]} 10. c5 {[%clk 0:04:51.5]} 10... Bxc5 {[%clk 0:04:29.4]} 11. Qh5+
{[%clk 0:04:50.3]} 11... g6 {[%clk 0:04:24]} 12. Qxc5 {[%clk 0:04:50.2]} 12...
Qd6 {[%clk 0:04:18.1]} 13. Qxd6 {[%clk 0:04:49.3]} 13... cxd6 {[%clk 0:04:16.2]}
14. Nxc6 {[%clk 0:04:49.2]} 14... bxc6 {[%clk 0:04:15.5]} 15. Nc3 {[%clk
0:04:49.1]} 15... Rb8 {[%clk 0:04:14.5]} 16. O-O-O {[%clk 0:04:48.3]} 16... Ne7
{[%clk 0:04:12.5]} 17. Nxe4 {[%clk 0:04:47.6]} 17... O-O {[%clk 0:04:05.9]} 18.
Nxf6+ {[%clk 0:04:46.8]} 18... Kg7 {[%clk 0:04:03.6]} 19. Nd7+ {[%clk
0:04:46.7]} 1-0

[Event "Live Chess"]
[Site "Chess.com"]
[Date "2024.06.01"]
[Round "-"]
[White "Golden_Plans"]
[Black "Ferrarifan27"]
[Result "1-0"]
[WhiteElo "2251"]
[BlackElo "2082"]
[TimeControl "300"]
[EndTime "11:01:02 PDT"]
[Termination "Golden_Plans won by checkmate"]

1. e4 {[%clk 0:04:55.6]} 1... e5 {[%clk 0:04:58.4]} 2. Nf3 {[%clk 0:04:54.6]}
2... Nc6 {[%clk 0:04:57.8]} 3. Bc4 {[%clk 0:04:54.2]} 3... Bc5 {[%clk
0:04:56.8]} 4. c3 {[%clk 0:04:52.7]} 4... Nf6 {[%clk 0:04:55.3]} 5. O-O {[%clk
0:04:50.9]} 5... O-O {[%clk 0:04:53.6]} 6. d4 {[%clk 0:04:50]} 6... exd4 {[%clk
0:04:52.4]} 7. cxd4 {[%clk 0:04:49.9]} 7... Bb6 {[%clk 0:04:51]} 8. Nc3 {[%clk
0:04:49.8]} 8... d6 {[%clk 0:04:49.1]} 9. h3 {[%clk 0:04:48.2]} 9... Re8 {[%clk
0:04:47.2]} 10. Re1 {[%clk 0:04:44.1]} 10... a6 {[%clk 0:04:37.5]} 11. a3 {[%clk
0:04:36.9]} 11... h6 {[%clk 0:04:35.7]} 12. b4 {[%clk 0:04:35]} 12... Bd7 {[%clk
0:04:33.3]} 13. Qb3 {[%clk 0:04:32.1]} 13... Qe7 {[%clk 0:04:31.4]} 14. e5
{[%clk 0:04:22.8]} 14... dxe5 {[%clk 0:04:29.6]} 15. dxe5 {[%clk 0:04:22.7]}
15... Nh7 {[%clk 0:04:24.3]} 16. Nd5 {[%clk 0:04:13.3]} 16... Qf8 {[%clk
0:04:21.2]} 17. Bb2 {[%clk 0:04:07.3]} 17... Be6 {[%clk 0:04:14.5]} 18. Nxb6
{[%clk 0:04:00.6]} 18... cxb6 {[%clk 0:04:14.4]} 19. Bxe6 {[%clk 0:03:59.1]}
19... Rxe6 {[%clk 0:04:11.9]} 20. Nd4 {[%clk 0:03:57.2]} 20... Nxd4 {[%clk
0:04:10.6]} 21. Bxd4 {[%clk 0:03:56.3]} 21... Rd8 {[%clk 0:04:07.4]} 22. Bc3
{[%clk 0:03:54.6]} 22... Qe8 {[%clk 0:04:05.9]} 23. Rad1 {[%clk 0:03:52.6]}
23... Ng5 {[%clk 0:04:02.1]} 24. f4 {[%clk 0:03:49.6]} 24... Rxd1 {[%clk
0:03:57.3]} 25. Qxd1 {[%clk 0:03:46]} 25... Nh7 {[%clk 0:03:53.9]} 26. Qd5
{[%clk 0:03:43.5]} 26... Rc6 {[%clk 0:03:51.9]} 27. Bb2 {[%clk 0:03:41.2]} 27...
b5 {[%clk 0:03:49.1]} 28. Qd4 {[%clk 0:03:39.8]} 28... Qc8 {[%clk 0:03:45.5]}
29. e6 {[%clk 0:03:36]} 29... Nf6 {[%clk 0:03:38]} 30. e7 {[%clk 0:03:32.4]}
30... Qe8 {[%clk 0:03:24.6]} 31. Qd8 {[%clk 0:03:28.7]} 31... Rc8 {[%clk
0:03:23.3]} 32. Bxf6 {[%clk 0:03:25.3]} 32... gxf6 {[%clk 0:03:16.2]} 33. Rd1
{[%clk 0:03:23.9]} 33... Kg7 {[%clk 0:03:08.5]} 34. Qd7 {[%clk 0:03:09.9]} 34...
b6 {[%clk 0:02:52]} 35. Kh2 {[%clk 0:02:57.9]} 35... Rb8 {[%clk 0:02:38.1]} 36.
Rd3 {[%clk 0:02:53.8]} 36... f5 {[%clk 0:02:32.7]} 37. Rg3+ {[%clk 0:02:50.5]}
37... Kh8 {[%clk 0:02:31.7]} 38. Qd6 {[%clk 0:02:47.4]} 38... Kh7 {[%clk
0:02:24.1]} 39. Qf6 {[%clk 0:02:45.9]} 39... Qh8 {[%clk 0:02:19.3]} 40. Qxf7+
{[%clk 0:02:34.2]} 40... Qg7 {[%clk 0:02:14.4]} 41. Qxg7# {[%clk 0:02:21]} 1-0

[Event "Live Chess"]
[Site "Chess.com"]
[Date "2024.06.01"]
[Round "-"]
[White "RamsayFlayer"]
[Black "viktor_forever1994"]
[Result "1-0"]
[WhiteElo "1961"]
[BlackElo "1390"]
[TimeControl "300"]
[EndTime "11:01:33 PDT"]
[Termination "RamsayFlayer won on time"]

1. e4 {[%clk 0:04:57.2]} 1... e5 {[%clk 0:04:59]} 2. Nf3 {[%clk 0:04:56.6]} 2...
Nc6 {[%clk 0:04:58]} 3. Bb5 {[%clk 0:04:55.8]} 3... Nf6 {[%clk 0:04:56.6]} 4.
O-O {[%clk 0:04:54]} 4... a6 {[%clk 0:04:53.7]} 5. Bxc6 {[%clk 0:04:47.9]} 5...
dxc6 {[%clk 0:04:52.5]} 6. Nxe5 {[%clk 0:04:46.8]} 6... Qd4 {[%clk 0:04:50.9]}
7. Nf3 {[%clk 0:04:45]} 7... Qb6 {[%clk 0:04:46.4]} 8. e5 {[%clk 0:04:42.3]}
8... Nd5 {[%clk 0:04:44.3]} 9. d4 {[%clk 0:04:36.8]} 9... Bg4 {[%clk 0:04:40.3]}
10. Be3 {[%clk 0:04:31.1]} 10... O-O-O {[%clk 0:04:30.3]} 11. b3 {[%clk
0:04:25]} 11... Nxe3 {[%clk 0:04:11.4]} 12. fxe3 {[%clk 0:04:23.6]} 12... h5
{[%clk 0:04:04.4]} 13. h3 {[%clk 0:04:20.3]} 13... Bf5 {[%clk 0:03:51.9]} 14. c4
{[%clk 0:04:15.7]} 14... Bb4 {[%clk 0:03:43.9]} 15. c5 {[%clk 0:04:08.6]} 15...
Qb5 {[%clk 0:03:38.9]} 16. a3 {[%clk 0:04:07]} 16... Bxb1 {[%clk 0:03:31]} 17.
Qxb1 {[%clk 0:04:00.4]} 17... Bc3 {[%clk 0:03:25.4]} 18. Ra2 {[%clk 0:03:58.2]}
18... g5 {[%clk 0:03:12.2]} 19. Qc2 {[%clk 0:03:50.5]} 19... g4 {[%clk
0:03:01.2]} 20. hxg4 {[%clk 0:03:32.8]} 20... hxg4 {[%clk 0:02:57.1]} 21. Ng5
{[%clk 0:03:32.3]} 21... Bxd4 {[%clk 0:02:19.3]} 22. exd4 {[%clk 0:03:27]} 22...
Rxd4 {[%clk 0:02:15]} 23. Qf5+ {[%clk 0:03:14.2]} 23... Kb8 {[%clk 0:02:07.2]}
24. b4 {[%clk 0:03:12.6]} 24... Qc4 {[%clk 0:01:41.1]} 25. Rc2 {[%clk
0:03:10.1]} 25... Qb3 {[%clk 0:01:30.6]} 26. Rcf2 {[%clk 0:02:58.1]} 26... Qe3
{[%clk 0:00:46.6]} 27. Nxf7 {[%clk 0:02:49.2]} 27... Rf8 {[%clk 0:00:36.1]} 28.
e6 {[%clk 0:02:44.2]} 28... g3 {[%clk 0:00:32.6]} 29. Qf3 {[%clk 0:02:07]} 29...
gxf2+ {[%clk 0:00:25.6]} 30. Qxf2 {[%clk 0:02:06.2]} 30... Qxf2+ {[%clk
0:00:19.4]} 31. Rxf2 {[%clk 0:02:05.6]} 31... Re4 {[%clk 0:00:14.4]} 32. Rf6
{[%clk 0:02:04.2]} 32... Re8 {[%clk 0:00:06.2]} 33. Ng5 {[%clk 0:02:02.1]} 33...
R4xe6 {[%clk 0:00:03.9]} 34. Nxe6 {[%clk 0:02:00.5]} 34... Re7 {[%clk
0:00:01.7]} 35. Rf8+ {[%clk 0:01:59]} 35... Ka7 {[%clk 0:00:01.6]} 36. Nf4
{[%clk 0:01:57]} 36... Re4 {[%clk 0:00:00.3]} 37. g4 {[%clk 0:01:55]} 1-0

[Event "Live Chess"]
[Site "Chess.com"]
[Date "2024.06.01"]
[Round "-"]
[White "matt1979"]
[Black "Queensandpawns"]
[Result "0-1"]
[WhiteElo "1377"]
[BlackElo "2443"]
[TimeControl "300"]
[EndTime "11:01:39 PDT"]
[Termination "Queensandpawns won by resignation"]

1. f4 {[%clk 0:04:58.3]} 1... e5 {[%clk 0:04:59]} 2. fxe5 {[%clk 0:04:56.8]}
2... d6 {[%clk 0:04:58.9]} 3. Nf3 {[%clk 0:04:54.6]} 3... dxe5 {[%clk
0:04:57.7]} 4. e4 {[%clk 0:04:53.6]} 4... Bc5 {[%clk 0:04:55.5]} 5. c3 {[%clk
0:04:51.1]} 5... Nf6 {[%clk 0:04:54]} 6. d4 {[%clk 0:04:46.8]} 6... exd4 {[%clk
0:04:52.6]} 7. cxd4 {[%clk 0:04:45.7]} 7... Bb4+ {[%clk 0:04:52.2]} 8. Bd2
{[%clk 0:04:42.2]} 8... Bxd2+ {[%clk 0:04:48.3]} 9. Nbxd2 {[%clk 0:04:35.2]}
9... O-O {[%clk 0:04:48.2]} 10. Bd3 {[%clk 0:04:29.1]} 10... c5 {[%clk
0:04:44.7]} 11. e5 {[%clk 0:04:24]} 11... Ng4 {[%clk 0:04:43.6]} 12. Qe2 {[%clk
0:04:17]} 12... cxd4 {[%clk 0:04:38.9]} 13. Qe4 {[%clk 0:04:13.3]} 13... f5
{[%clk 0:04:36.3]} 14. Qxd4 {[%clk 0:04:05.1]} 14... Qxd4 {[%clk 0:04:34.4]} 15.
Nxd4 {[%clk 0:04:04.2]} 15... Rd8 {[%clk 0:04:34.3]} 16. N2f3 {[%clk 0:03:52.4]}
16... Nxe5 {[%clk 0:04:29.2]} 17. Bxf5 {[%clk 0:03:41.4]} 17... Nxf3+ {[%clk
0:04:26.9]} 18. Nxf3 {[%clk 0:03:36.6]} 18... Bxf5 {[%clk 0:04:24.8]} 19. Kf2
{[%clk 0:03:31.6]} 19... Nc6 {[%clk 0:04:23.6]} 0-1

[Event "Live Chess"]
[Site "Chess.com"]
[Date "2024.06.01"]
[Round "-"]
[White "febray_27"]
[Black "PatientChessPapa"]
[Result "1-0"]
[WhiteElo "2003"]
[BlackElo "784"]
[TimeControl "300"]
[EndTime "11:01:45 PDT"]
[Termination "febray_27 won on time"]

1. Nf3 {[%clk 0:04:57.1]} 1... d5 {[%clk 0:04:57.6]} 2. d4 {[%clk 0:04:56.5]}
2... Nf6 {[%clk 0:04:54.2]} 3. g3 {[%clk 0:04:56]} 3... e6 {[%clk 0:04:40]} 4.
Bg2 {[%clk 0:04:42.3]} 4... c5 {[%clk 0:04:34.5]} 5. dxc5 {[%clk 0:04:40]} 5...
Bxc5 {[%clk 0:04:31.5]} 6. O-O {[%clk 0:04:26.8]} 6... O-O {[%clk 0:04:29.8]} 7.
c4 {[%clk 0:04:23.5]} 7... dxc4 {[%clk 0:04:12.7]} 8. Qa4 {[%clk 0:04:21.3]}
8... Nc6 {[%clk 0:03:49.2]} 9. Qxc4 {[%clk 0:04:18.9]} 9... Be7 {[%clk
0:03:39.7]} 10. Nc3 {[%clk 0:04:17.8]} 10... Qc7 {[%clk 0:03:28.7]} 11. Bf4
{[%clk 0:04:16.5]} 11... Qb6 {[%clk 0:03:16.1]} 12. b3 {[%clk 0:04:01.3]} 12...
Rd8 {[%clk 0:02:55.1]} 13. Nb5 {[%clk 0:03:58.2]} 13... Bd7 {[%clk 0:02:08.2]}
14. Bc7 {[%clk 0:03:54.6]} 14... Na5 {[%clk 0:01:50.5]} 15. Bxb6 {[%clk
0:03:47.7]} 15... Nxc4 {[%clk 0:01:49]} 16. Bxd8 {[%clk 0:03:47]} 16... Bxd8
{[%clk 0:01:41.8]} 17. bxc4 {[%clk 0:03:45.6]} 17... Rc8 {[%clk 0:01:27.8]} 18.
Nxa7 {[%clk 0:03:43.4]} 18... Rxc4 {[%clk 0:01:25.7]} 19. Rfc1 {[%clk
0:03:42.8]} 19... Ra4 {[%clk 0:00:52.7]} 20. Nc8 {[%clk 0:03:40.2]} 20... h6
{[%clk 0:00:34]} 21. Ne5 {[%clk 0:03:38.5]} 21... Bb5 {[%clk 0:00:16.5]} 22. Bf3
{[%clk 0:03:27]} 22... Ra8 {[%clk 0:00:05.6]} 23. Nd6 {[%clk 0:03:25.1]} 1-0

[Event "Live Chess"]
[Site "Chess.com"]
[Date "2024.06.01"]
[Round "-"]
[White "Larchikov"]
[Black "WilliamofOrange16th"]
[Result "0-1"]
[WhiteElo "2068"]
[BlackElo "1949"]
[TimeControl "300"]
[EndTime "11:01:59 PDT"]
[Termination "WilliamofOrange16th won by resignation"]

1. d4 {[%clk 0:04:57.4]} 1... d5 {[%clk 0:04:47.6]} 2. c4 {[%clk 0:04:57.3]}
2... c6 {[%clk 0:04:46.7]} 3. cxd5 {[%clk 0:04:55]} 3... cxd5 {[%clk 0:04:45.4]}
4. Nf3 {[%clk 0:04:54.6]} 4... Nf6 {[%clk 0:04:44.1]} 5. Nc3 {[%clk 0:04:52.7]}
5... Nc6 {[%clk 0:04:42.4]} 6. Bf4 {[%clk 0:04:50.4]} 6... a6 {[%clk 0:04:41.6]}
7. e3 {[%clk 0:04:49]} 7... Bf5 {[%clk 0:04:39.5]} 8. Bd3 {[%clk 0:04:48.1]}
8... Bxd3 {[%clk 0:04:38.2]} 9. Qxd3 {[%clk 0:04:48]} 9... e6 {[%clk 0:04:37.6]}
10. O-O {[%clk 0:04:47.4]} 10... Bd6 {[%clk 0:04:37]} 11. Ne5 {[%clk 0:04:44.1]}
11... O-O {[%clk 0:04:34.2]} 12. Bg3 {[%clk 0:04:35.1]} 12... Nh5 {[%clk
0:04:30.6]} 13. f4 {[%clk 0:04:31.6]} 13... Nxg3 {[%clk 0:04:29.1]} 14. hxg3
{[%clk 0:04:31.5]} 14... f6 {[%clk 0:04:23.8]} 15. Nf3 {[%clk 0:04:28.1]} 15...
Qe8 {[%clk 0:04:14.9]} 16. Rae1 {[%clk 0:04:23.5]} 16... Qh5 {[%clk 0:04:13.1]}
17. Kf2 {[%clk 0:04:19.1]} 17... g5 {[%clk 0:04:07]} 18. f5 {[%clk 0:04:00.1]}
18... Qg4 {[%clk 0:03:52]} 19. Ne2 {[%clk 0:03:35]} 19... Rad8 {[%clk
0:03:36.6]} 20. fxe6 {[%clk 0:03:13.4]} 20... Rde8 {[%clk 0:02:54.1]} 21. Rh1
{[%clk 0:03:04.2]} 21... Re7 {[%clk 0:02:53.3]} 22. Nh2 {[%clk 0:02:59.7]} 22...
Qxe6 {[%clk 0:02:34]} 23. Nf3 {[%clk 0:02:08.3]} 23... Rg7 {[%clk 0:02:19.2]}
24. Rh6 {[%clk 0:02:02.9]} 24... Ne7 {[%clk 0:02:10.5]} 25. Reh1 {[%clk
0:01:42.6]} 25... Nf5 {[%clk 0:01:59.2]} 26. R6h5 {[%clk 0:01:31.9]} 26... Re8
{[%clk 0:01:55.3]} 27. Nc3 {[%clk 0:00:25.6]} 27... Bxg3+ {[%clk 0:01:49.3]} 28.
Ke2 {[%clk 0:00:21.9]} 28... Bd6 {[%clk 0:01:37.8]} 29. Kd2 {[%clk 0:00:17.1]}
29... Qxe3+ {[%clk 0:01:31.4]} 30. Qxe3 {[%clk 0:00:15.7]} 30... Nxe3 {[%clk
0:01:27.6]} 31. Kd3 {[%clk 0:00:13.1]} 31... b5 {[%clk 0:01:20.6]} 32. Re1
{[%clk 0:00:11.4]} 32... Rge7 {[%clk 0:01:17.5]} 33. a3 {[%clk 0:00:06.5]} 33...
b4 {[%clk 0:01:14.8]} 34. axb4 {[%clk 0:00:06.4]} 34... Bxb4 {[%clk 0:01:14.1]}
35. Nd2 {[%clk 0:00:04.8]} 35... Bxc3 {[%clk 0:01:13.1]} 36. bxc3 {[%clk
0:00:04.7]} 36... Nxg2 {[%clk 0:01:09.4]} 37. Rxe7 {[%clk 0:00:04.6]} 37... Rxe7
{[%clk 0:01:08.6]} 38. Rh2 {[%clk 0:00:04.4]} 38... Nf4+ {[%clk 0:01:07.1]} 39.
Kc2 {[%clk 0:00:03.2]} 39... Re2 {[%clk 0:01:05.9]} 40. Rh1 {[%clk 0:00:02.1]}
40... h5 {[%clk 0:01:04.2]} 41. Ra1 {[%clk 0:00:02]} 41... Re6 {[%clk
0:01:01.8]} 42. Rxa6 {[%clk 0:00:01.9]} 42... Rxa6 {[%clk 0:01:00.5]} 0-1